Cogmind - Beta 14 @@@ ROGUE MODE // 2024.09.23 @ 07:48:20 Player: Anaia Result: Destroyed by G-34 Mercenary with Small Laser Performance ------------- Evolutions (0) 0 Regions Visited (1) 200 Robots Destroyed (5) 25 Value Destroyed (150) 150 Prototype IDs (0) 0 Alien Tech Used (0) 0 Bonus (0) 0 TOTAL SCORE: 375 Bonus ------- None Cogmind --------- Core Integrity 0/250 Matter 157/300 Energy 100/100 System Corruption 0% Temperature Warm (122) Movement Core (50) Location -10/Materials Parts ------- > --- POWER (1) -------- (None) > --- PROPULSION (2) --- (None) > --- UTILITY (2) ------ Targeting Computer > --- WEAPON (2) ------- Small Laser > --- INVENTORY (5) ---- Huge Storage Unit Structural Scanner EM Pulse Gun Peak State ------------ > --- POWER ------------ Light Ion Engine > --- PROPULSION ------- Aluminum Leg Aluminum Leg > --- UTILITY ---------- Small Storage Unit Targeting Computer > --- WEAPON ----------- EM Pulse Gun Assault Rifle > --- INVENTORY -------- Light Ion Engine [Rating: 7] Favorites ----------- Power Light Ion Engine Engine Light Ion Engine Propulsion Aluminum Leg Leg Aluminum Leg Utility Targeting Computer Device Structural Scanner Storage Small Storage Unit Processor Targeting Computer Weapon Assault Rifle Energy Gun EM Pulse Gun Ballistic Gun Assault Rifle Ballistic Cannon Light Cannon Build | -11 -10 ------- Run | Yrd Mat Slots Evolved . | . . Power . | . . Propulsion . | . . Utility . | . . Weapon . | . . Parts Attached 13 | 6 7 Power 2 | 1 1 Engine 2 | 1 1 Core . | . . Reactor . | . . Propulsion 2 | 2 . Treads . | . . Leg 2 | 2 . Wheel . | . . Hover . | . . Flight . | . . Utility 4 | 1 3 Device 1 | . 1 Storage 2 | 1 1 Processor 1 | . 1 Hackware . | . . Protection . | . . Artifact . | . . Weapon 5 | 2 3 Energy Gun 3 | 1 2 Energy Cannon . | . . Ballistic Gun 1 | 1 . Ballistic Cannon 1 | . 1 Launcher . | . . Special Weapon . | . . Impact Weapon . | . . Slashing Weapon . | . . Piercing Weapon . | . . Special Melee Weapon . | . . Unidentified Prototypes . | . . Parts Lost 6 | . 6 Power 1 | . 1 Propulsion 2 | . 2 Utility . | . . Weapon 3 | . 3 Highest Loss Streak 6 | . 6 To Critical Strikes . | . . Average Slot Usage (%) 84 | . 84 Engine 12 | . 12 Leg 23 | . 23 Device 6 | . 6 Storage 1 | . 1 Processor 13 | . 13 Energy Gun 12 | . 12 Ballistic Gun 12 | . 12 Ballistic Cannon 2 | . 2 Peak Build Rating 7 | 6 7 Average Rating 5 | 3 5 On Entrance 3 | . 6 Naked Turns . | . . Heaviest Build 12 | 12 12 Greatest Support 20 | 20 20 Greatest Overweight (x) . | . . Average Overweight (x) . | . . Largest Inventory Capacity 25 | 8 25 Average Capacity 5 | 6 5 Most Carried 5 | 3 5 Average Carried 3 | 1 4 Final Capacity 8 | 8 5 Final Carried 3 | 1 3 Class Distribution -------------------- 100% | Mutant Dominant Class ---------------- Mutant | -10/Materials Resources | -11 -10 ----------- Run | Yrd Mat Matter Collected 335 | 217 118 Remotely . | . . Salvage Created 188 | . 188 Parts 11 | . 11 Haulers Intercepted . | . . Recyclers Shooed . | . . Parts Field Recycled . | . . Retrieved Matter . | . . Parts Self-Destructed . | . . Prevented . | . . Kills | -11 -10 ------- Run | Yrd Mat Combat Hostiles Destroyed 4 | . 4 Guns 2 | . 2 Cannons 2 | . 2 Classes Destroyed 2 | . 2 Worker 1 | . 1 Grunt 4 | . 4 Best Kill Streak 2 | . 2 Combat Bots Only 2 | . 2 Max Kills in Single Turn 1 | . 1 Gunslinging . | . . Exploded . | . . Melee . | . . Uniques/NPCs Destroyed . | . . Combat | -11 -10 -------- Run | Yrd Mat Hostile Shots Fired 95 | . 95 Missed 25 | . 25 Damage Taken 913 | . 913 Core 259 | . 259 Absorbed by Shields . | . . Core Remaining (%) 100 | 100 . Volleys Fired 50 | . 50 Largest 2 | . 2 Hottest 80 | . 80 Shots Fired 91 | . 91 Gun 75 | . 75 Cannon 16 | . 16 Launcher . | . . Special . | . . Kinetic 54 | . 54 Thermal 18 | . 18 Explosive . | . . Electromagnetic 19 | . 19 Robot Hit Streak 10 | . 10 Robot Miss Streak 4 | . 4 Penetration Max . | . . Secondary Targets . | . . Shots Hit Robots 64 | . 64 Core Hits 12 | . 12 Critical Kills . | . . Critical Parts Destroyed . | . . Critical Strikes . | . . Melee Attacks . | . . Impact . | . . Slashing . | . . Piercing . | . . Sneak Attacks . | . . Combat Hostiles . | . . Follow-up Attacks . | . . Damage Inflicted 845 | . 845 Guns 659 | . 659 Cannons 186 | . 186 Explosions . | . . Melee . | . . Ramming . | . . Kinetic 515 | . 515 Thermal 164 | . 164 Explosive . | . . Electromagnetic 166 | . 166 Impact . | . . Slashing . | . . Piercing . | . . Highest Corruption . | . . Average Corruption . | . . Corruption Purged . | . . Corruption Blocked . | . . Overload Shots . | . . Overflow Damage . | . . Projectiles . | . . Explosions . | . . Melee . | . . Knockbacks . | . . Impact . | . . Kinetic . | . . Secondary . | . . Self-Inflicted Damage . | . . Shots . | . . Rammed . | . . Targets Rammed . | . . Kicked . | . . Crushed . | . . Highest Temperature 144 | . 144 Average Temperature 68 | . 68 Received Heat Transfer 525 | . 525 Siege Activations . | . . Robots Corrupted . | . . Combat Hostiles . | . . Parts Fried . | . . Impact Corruptions . | . . Robots Melted . | . . Combat Hostiles . | . . Parts Melted . | . . Heat Transferred 375 | . 375 Parts Sabotaged . | . . Parts Stolen . | . . Parts Stripped . | . . Power Chain Reactions . | . . Alert | -11 -10 ------- Run | Yrd Mat Peak Influence 100 | . 100 Initial . | . . Average 28 | . 34 Maximum Alert Level . | . . Low Security (%) 100 | 100 100 Level 1 . | . . Level 2 . | . . Level 3 . | . . Level 4 . | . . Level 5 . | . . High Security . | . . Max Security . | . . Squads Dispatched . | . . Investigation . | . . Extermination . | . . Reinforcement . | . . Assault . | . . Garrison . | . . Intercept . | . . Searches Triggered . | . . Construction Impeded . | . . Haulers Reinforced . | . . Active Scanning Responses . | . . Cargo Convoy Interrupts . | . . Stealth | -11 -10 --------- Run | Yrd Mat Distress Signals 2 | . 2 Communications Jammed . | . . Distress Signals . | . . Times Spotted 8 | . 8 Peak Tracking Total 4 | . 4 Tactical Retreats 1 | . 1 Traps | -11 -10 ------- Run | Yrd Mat Traps Triggered . | . . Indirectly . | . . Trap Hack Attempts . | . . Triggered . | . . Disarmed . | . . Reprogrammed . | . . Reused . | . . Traps Extracted . | . . Installed . | . . Triggered . | . . Machines | -11 -10 ---------- Run | Yrd Mat Machines Disabled . | . . Max in Single Turn . | . . Machines Repaired . | . . Machines Dismantled . | . . Machines Sabotaged . | . . Overloaded Fab Kills . | . . Hacking | -11 -10 --------- Run | Yrd Mat Machines Accessed . | . . Terminals . | . . Fabricators . | . . Repair Stations . | . . Recycling Units . | . . Scanalyzers . | . . Garrison Access . | . . Total Hacks . | . . Successful . | . . Failed . | . . Catastrophic . | . . Database Lockouts . | . . Manual . | . . Terminals . | . . Fabricators . | . . Repair Stations . | . . Recycling Units . | . . Scanalyzers . | . . Garrison Access . | . . Terminal Hacks . | . . Fabricator Hacks . | . . Repair Station Hacks . | . . Recycling Unit Hacks . | . . Scanalyzer . | . . Garrison Access Hacks . | . . Unauthorized Hacks . | . . Terminals . | . . Fabricators . | . . Repair Stations . | . . Recycling Units . | . . Scanalyzers . | . . Garrison Access . | . . Data Cores Recovered . | . . Used . | . . Hacking Detections . | . . Full Trace Events . | . . Feedback Events . | . . Feedback Blocked . | . . Robot Schematics Acquired . | . . Robots Built . | . . Authchips . | . . Time . | . . Total Robot Build Rating . | . . Part Schematics Acquired . | . . Parts Built . | . . Authchips . | . . Time . | . . Total Part Build Rating . | . . Parts Repaired . | . . Time . | . . Parts Recycled . | . . Recycled Matter . | . . Retrieved Matter . | . . Retrieved Components . | . . Parts Scanalyzed . | . . Part Schematics Acquired . | . . Parts Damaged . | . . Bothacking | -11 -10 ------------ Run | Yrd Mat Used RIF Installer . | . . Robots Hacked . | . . Non-combat . | . . Combat . | . . Robot Hacks Applied . | . . Relay Couplers Released . | . . Fabnet Peak Effective % . | . . Robots Rewired . | . . Allies Hacked . | . . Hacks Repelled . | . . Allies | -11 -10 -------- Run | Yrd Mat Total Allies . | . . Largest Group . | . . Highest-Rated Group . | . . Highest-Rated Ally . | . . Total Orders . | . . Ally Attacks . | . . Total Damage . | . . Kills . | . . Allies Corrupted . | . . Allies Melted . | . . Intel | -11 -10 ------- Run | Yrd Mat Robot Analysis Total . | . . Derelict Logs Recovered . | . . Drone Launches . | . . Drone Recoveries . | . . Exploration | -11 -10 ------------- Run | Yrd Mat Turns Passed 334 | 57 277 Spaces Moved 139 | 41 98 Core 7 | 7 . Treads . | . . Legs 132 | 34 98 Wheels . | . . Hover . | . . Flight . | . . Fastest Speed 50 | 50 120 Average Speed 116 | 108 120 Slowest Speed 120 | 120 120 Overloaded Moves . | . . Propulsion Burnouts . | . . Robots Hopped . | . . Cave-ins Triggered . | . . Exploration Rate (%) 14 | 3 25 Regions Visited 1 Branch Regions . Pre-discovered Areas . | . . Known Exits Taken . | . . Unknown Exits Taken 1 | 1 . Scrap Searched . | . . Spaces Dug . | . . Terrain Destroyed . | . . Melee . | . . Projectile . | . . AOE . | . . Terrain Rammed . | . . Walls Destroyed . | . . Machines Disabled . | . . Actions | -11 -10 --------- Run | Yrd Mat Total 219 | 53 166 Wait . | . . Move 138 | 40 98 Hop . | . . Pick Up 14 | 7 7 Fast Attach . | . . Attach 9 | 6 3 Detach 1 | . 1 Swap 4 | . 4 Drop 3 | . 3 Fire 50 | . 50 Melee . | . . Ram . | . . Kick . | . . Crush . | . . Escape Stasis . | . . Rewire . | . . Trap . | . . Miscellaneous . | . . Route ------- -11/Scrapyard -10/Materials History --------- Turn | Location | Event 4 | -11/Scrapyard | Discovered new exit (range 16) 58 | -11/Scrapyard | Entered Materials 310 | -10/Materials | Core integrity fell below 50% 324 | -10/Materials | Core integrity fell below 20% 328 | -10/Materials | Build established: Mutant 335 | -10/Materials | Destroyed by G-34 Mercenary with Small Laser Last Messages --------------- recycling unit. R-06 Scavenger inserts Wheel into recycling unit. Assault Rifle destroyed. R-06 Scavenger inserts Corrupted Imp. Heat Sink into recycling unit. Recycling unit begins recycling process. R-06 Scavenger collects Ion Engine. R-06 Scavenger collects Sml. Laser. R-06 Scavenger inserts Ion Engine into recycling unit. R-06 Scavenger inserts Sml. Laser into recycling unit. Recycling unit begins recycling process. Sml. Laser destroyed. R-06 Scavenger collects Sml. Storage Unit. M-13 Machinist repairs Tractor Beam. Destroyed Aluminum Leg. G-47 Trooper overheating. M-13 Machinist repairs G-47 Trooper. Map ----- +----------------------------------------------------+ | ??????? # ##????????????????????????? | | ???????## ? ##????????????????????????? | | ??????? # """ ##????????????????????????? | | ??????? # """ ## ???????????????????????? | | ??????? # """ ## ???????????????????????? | | ??????? # # ???????????????????????? | | ??????? + ##???????????????????????? | | ??????? # ^ ##???????????????????????? | | ??????? # ##???????????????????????? | | ??????? # ^ ##???????????????????????? | | ??????? #!!! ########### ??#??????????? | | ??????? #!! ########### +??????????? | | ??????? #! #??????????? | | ??????? # = #??????????? | | ???????## #??????????? | | ???????## ###########??????????????? | | ???????## #! """ ##????????????????? | | ######### # """ #?????????????????? | | ######### + """ #?????????????????? | | # # #?????????????????? | | # ""T"" # #?????????????????? | | # """"" # ![ !#?????????????????? | | # """ ##### ###+#####????????????????? | | # """ ##### # %g #????????????????? | | # """ ##?## #%""" #????????????????? | | # """ ##?## +%"Y" @ #????????????????? | | # ? ##?## #%%% #????????????????? | | # ?? ##?## # !% #????????????????? | | ??? ### ###?## #########????????????????? | | ??? ####+###?## ##???????????????????????? | | ?? # ??## ##???????????????????????? | | # ?????????## ##???????????????????????? | | # # ### ##???????????????????????? | | # ########### ##???????????????????????? | | # ##???????????????????????? | | + ##???????????????????????? | | # ##???????????????????????? | | # ######## ##???????????????????????? | | # ######## ##???????????????????????? | | ?# ######## ##???????????????????????? | | ?# ########+## ##???????????????????????? | | ?# # """ # ##???????????????????????? | | ?# # "Y" """ + ##???????????????????????? | | ?# # " " """ ######???????????????????????? | | ?# # """ ######???????????????????????? | | ?# + ##???????????????????????????? | | ?# # ! ##???????????????????????????? | | ?# # !! ##???????????????????????????? | | ?# # !! ##???????????????????????????? | | ?################???????????????????????????? | +----------------------------------------------------+ Best States ------------- Heat Dissipation 25 Energy Generation 10 Energy Capacity 125 Matter Stores 284 Matter Capacity 300 Sight Range 16 Terrain Scan Density 10 Evasion (%) 55 Targeting Accuracy 5 Item Schematics ----------------- None Robot Schematics ------------------ None Fabricated ------------ Nothing Alien Tech Used ----------------- None Achievements -------------- None Challenges ------------ None Game ------ Seed AssemblyCloakingStreamer Manual? 0 Play Time 00:09:58 Cumulative 4.0 hours Start 2024.09.23 @ 07:39:16 End 2024.09.23 @ 07:48:20 Sessions 1 Manual Loads 0 Difficulty Rogue Special Mode None Game No. 5 Rogue 5 Adventurer 0 Explorer 0 Win Type - Total 0 Types 0/0/0/0/0/0/0/0/0 Lore% 1 Gallery% 6 Achievement% 8 Wizard Run 0 Options --------- Layout 1 ASCII 0 Keyboard 0 Movement Mouse Keybinds 0 Fullscreen 1 Font 24/X11 Map View 50x35 Zoom Use 0% Tactical HUD 0 Map Filters NONE Filters NONE Steam 1 RUN: 687abbc3-c39d-45ea-bf61-291c0bcee119